bitfinex/quotes_ETHUSD_20240922
["timestamp","ask_amount","ask_price","bid_price","bid_amount"]
[1727033514539,0.08239442,2572.5,2572.4,10.34453649]
[1727033514738,0.08239442,2572.5,2572.4,10.26679485]
[1727033515053,0.0085958,2572.5,2572.4,10.26679485]
[1727033515759,0.0085958,2572.5,2572.4,10.94695077]
[1727033518463,0.0085958,2572.5,2572.4,12.22224475]
[1727033518768,0.0085958,2572.5,2572.4,11.38679452]
[1727033518946,0.0085958,2572.5,2572.4,12.61076937]
[1727033519263,2.2665,2572.8,2572.4,12.61076937]
[1727033519264,2.2665,2572.8,2572.7,3.88696]
[1727033519425,2.2778816,2572.8,2572.7,5.8424099]
[1727033521305,2.2778816,2572.8,2572.7,5.84243035]
[1727033522755,2.2778816,2572.8,2572.7,5.41740523]
[1727033522959,2.2778816,2572.8,2572.7,5.8425289]
[1727033523395,0.0113816,2572.8,2572.7,7.03160278]
[1727033523600,0.0113816,2572.8,2572.7,14.87544255]
[1727033523951,0.0113816,2572.8,2572.7,13.9815204]
[1727033524076,0.0113816,2572.8,2572.7,14.39088544]
[1727033524281,0.0113816,2572.8,2572.7,14.94069555]
[1727033524686,0.0113816,2572.8,2572.7,16.50485891]
[1727033525021,0.0113816,2572.8,2572.7,14.87184626]
[1727033525318,0.0113816,2572.8,2572.7,15.93206701]
[1727033525519,0.0113816,2572.8,2572.7,14.36790365]
[1727033526178,0.0113816,2572.8,2572.7,15.93206701]
[1727033526375,0.0113816,2572.8,2572.7,13.95971744]
[1727033526619,0.0113816,2572.8,2572.7,15.93206701]
[1727033526833,0.0113816,2572.8,2572.7,14.30097625]
[1727033526982,0.0113816,2572.8,2572.7,14.36790365]
[1727033527322,0.0113816,2572.8,2572.7,12.00415705]
[1727033527656,0.0113816,2572.8,2572.7,13.9580135]
[1727033527944,0.0113816,2572.8,2572.7,13.4080135]
[1727033528221,0.0113816,2572.8,2572.7,12.18529033]
[1727033528381,0.0113816,2572.8,2572.7,13.00039603]
[1727033528687,0.0113816,2572.8,2572.7,12.18529033]
[1727033528890,0.0113816,2572.8,2572.7,10.84499463]
[1727033529087,0.0113816,2572.8,2572.7,10.84500713]
[1727033529290,0.0113816,2572.8,2572.7,10.02989033]
[1727033530130,0.0113816,2572.8,2572.7,10.84500713]
[1727033530616,0.0113816,2572.8,2572.7,10.02989033]
[1727033530831,0.0113816,2572.8,2572.7,10.84500713]
[1727033530980,0.0113816,2572.8,2572.7,8.89115068]
[1727033531184,0.0113816,2572.8,2572.7,9.74059101]
[1727033531401,0.0113816,2572.8,2572.7,10.84486343]
[1727033531917,0.0113816,2572.8,2572.7,11.2524698]
[1727033532536,0.0113816,2572.8,2572.7,12.81663316]
[1727033532737,0.0113816,2572.8,2572.7,15.92529757]
[1727033532948,0.0381777,2573.3,2573.2,6.04161]
[1727033533115,0.0381777,2573.3,2573.2,11.97264637]
[1727033533305,0.0381777,2573.3,2573.2,12.1838847]
[1727033533505,0.0381777,2573.3,2573.2,12.99869885]
[1727033533808,0.0381777,2573.3,2573.2,12.1838847]
[1727033534015,0.0381777,2573.3,2573.2,12.99869885]
[1727033534338,0.0381777,2573.3,2573.2,13.56925334]
[1727033534650,0.0381777,2573.3,2573.2,13.56798501]
[1727033534828,0.0381777,2573.3,2573.2,16.06988592]
[1727033535002,0.0381777,2573.3,2573.2,14.11795343]
[1727033535507,0.0381777,2573.3,2573.2,13.56795343]
[1727033535728,0.0381777,2573.3,2573.2,12.71930086]
[1727033535929,0.0381777,2573.3,2573.2,13.56795343]
[1727033536349,0.0381777,2573.3,2573.2,12.71930086]
[1727033537843,0.0381777,2573.3,2573.2,11.61605252]
[1727033538412,0.0381777,2573.3,2573.2,12.71862987]
[1727033538948,0.0381777,2573.3,2573.2,12.71845261]
[1727033541456,0.0381777,2573.3,2573.2,12.04005255]
[1727033541654,0.0381777,2573.3,2573.2,11.61605252]
[1727033542264,0.0381777,2573.3,2573.2,12.71805008]
[1727033542470,0.0381777,2573.3,2573.2,13.83892009]
[1727033542874,0.0381777,2573.3,2573.2,14.65373424]
[1727033543236,0.0381777,2573.3,2573.2,15.23535109]
[1727033543435,0.0381777,2573.3,2573.2,14.65373424]
[1727033544363,0.0381777,2573.3,2573.2,14.08286423]
[1727033544776,0.0381777,2573.3,2573.2,14.65373424]
[1727033544955,2.3340777,2574.1,2574.0,3.885]
[1727033544956,0.0381777,2574.1,2574.0,3.885]
[1727033545161,0.0381777,2574.1,2574.0,9.45944252]
[1727033545381,0.0381777,2574.1,2574.0,10.00944252]
[1727033545589,0.0381777,2574.1,2574.0,12.16484252]
[1727033545890,0.0381777,2574.1,2574.0,12.58868773]
[1727033546443,0.0381777,2574.1,2574.0,13.26684008]
[1727033547664,0.0381777,2574.1,2574.0,16.99376946]
[1727033547850,2.3340777,2574.9,2574.8,6.88379]
[1727033547851,0.0381777,2574.9,2574.8,6.88379]
[1727033548053,0.0381777,2574.9,2574.8,9.45823252]
[1727033548878,0.0381777,2574.9,2574.8,7.30625225]
[1727033549075,0.0381777,2574.9,2574.8,6.88379]
[1727033549350,2.3340777,2574.9,2574.8,6.88379]
[1727033550092,2.40015332,2574.9,2574.8,6.88379]
[1727033551156,2.40015332,2574.9,2574.8,3.0]
[1727033552466,2.3340777,2574.9,2574.8,3.0]
[1727033552781,2.40022878,2574.9,2574.8,6.88379]
[1727033553690,2.40022878,2574.9,2574.8,3.0]
[1727033554793,2.40022878,2574.9,2574.8,6.88379]
[1727033554992,2.40022878,2574.9,2574.8,3.0]
[1727033556294,2.2959,2574.8,2574.4,3.88432]
[1727033556650,2.36233967,2574.7,2574.2,3.88456]
[1727033557049,2.2959,2574.6,2574.2,3.88456]
[1727033557251,0.06619107,2574.5,2574.2,3.88456]
[1727033557494,2.2959,2574.4,2574.0,3.8849]
[1727033557656,2.2959,2574.4,2574.0,7.76981]
[1727033557990,0.06618219,2574.3,2574.0,3.8849]
[1727033558195,0.06618219,2574.3,2574.2,3.8847]
[1727033559053,0.06618219,2574.3,2574.2,6.8847]
[1727033559589,0.06618219,2574.3,2574.2,3.8847]
[1727033559889,0.06618219,2574.3,2574.1,3.0]
[1727033560086,2.2959,2574.4,2574.1,3.0]
[1727033560299,0.06603565,2574.3,2574.1,6.88485]
[1727033560605,0.06603565,2574.3,2574.1,3.0]
[1727033561287,0.06603565,2574.3,2574.1,6.88484]
[1727033561481,0.06603565,2574.3,2574.1,3.0]
[1727033561884,2.2959,2574.4,2574.1,3.0]
[1727033562107,3.95058232,2574.3,2573.8,3.0]
[1727033562261,2.427,2574.2,2573.8,3.0]
[1727033562461,0.06600456,2574.1,2573.8,3.0]
[1727033562779,2.427,2574.2,2573.8,3.0]
[1727033563162,0.06599568,2574.1,2573.8,3.0]
[1727033565402,2.427,2574.0,2573.6,3.0]
[1727033565702,0.06589351,2573.9,2573.6,3.0]
[1727033567369,2.427,2574.0,2573.6,3.0]
[1727033567805,0.06547155,2573.9,2573.6,3.0]
[1727033568169,2.427,2574.0,2573.6,3.0]
[1727033568500,0.06547155,2573.9,2573.6,3.0]
[1727033569166,2.427,2573.8,2573.6,3.0]
[1727033569377,2.427,2573.8,2573.4,3.0]
[1727033569583,0.06544934,2573.7,2573.4,6.8859]
[1727033569983,2.427,2573.8,2573.4,6.8859]
[1727033570205,0.06544934,2573.6,2573.4,6.8859]
[1727033570371,2.427,2573.8,2573.4,6.8859]
[1727033570372,2.427,2573.8,2573.4,3.0]
[1727033570572,0.06544934,2573.5,2573.4,3.0]
[1727033570882,2.427,2573.8,2573.4,3.0]
[1727033571073,0.06544934,2573.5,2573.4,3.0]
[1727033571271,2.427,2573.8,2573.4,3.0]
[1727033571584,0.06544934,2573.7,2573.4,3.0]
[1727033572094,2.427,2573.8,2573.4,3.0]
[1727033572406,0.06544934,2573.7,2573.4,3.0]
[1727033572906,2.427,2573.8,2573.4,3.0]
[1727033573108,0.06544934,2573.7,2573.4,3.0]
[1727033573275,2.427,2573.8,2573.4,3.0]
[1727033573485,0.06544934,2573.7,2573.2,6.88619]
[1727033573698,0.06544934,2573.7,2573.3,3.88603]
[1727033574003,2.427,2573.8,2573.4,3.0]
[1727033574203,0.06537825,2573.6,2573.4,3.0]
[1727033574425,2.427,2573.8,2573.4,3.0]
[1727033574927,0.06537825,2573.7,2573.4,3.0]
[1727033575218,2.427,2573.8,2573.4,3.0]
[1727033575376,0.06537825,2573.6,2573.4,3.0]
[1727033575577,2.427,2573.8,2573.4,3.0]
[1727033575777,0.06537825,2573.5,2573.4,3.0]
[1727033576007,2.427,2573.8,2573.4,3.0]
[1727033576210,0.06537825,2573.5,2573.4,3.0]
[1727033576415,2.427,2573.8,2573.4,3.0]
[1727033576616,0.06537825,2573.5,2573.4,3.0]
[1727033577210,10.19772,2573.8,2573.3,3.0]
[1727033577416,0.06537825,2573.5,2573.3,3.0]
[1727033577598,6.31232,2573.8,2573.3,3.0]
[1727033577788,0.06537825,2573.4,2573.3,3.0]
[1727033577987,6.31232,2573.8,2573.3,3.0]
[1727033578209,0.06537825,2573.4,2573.3,3.0]
[1727033578381,6.31232,2573.8,2573.3,3.0]
[1727033578680,0.06537825,2573.4,2573.3,3.0]
[1727033578902,6.31232,2573.8,2573.4,3.0]
[1727033579106,0.06524495,2573.7,2573.4,3.0]
[1727033579417,10.19772,2573.8,2573.2,6.8862]
[1727033579618,0.06524495,2573.6,2573.2,3.0]
[1727033579779,2.427,2573.6,2573.2,3.0]
[1727033580130,0.06524495,2573.5,2573.2,3.0]
[1727033580366,6.31298,2573.4,2572.8,6.04207]
[1727033580695,6.31298,2573.4,2572.8,8.61651252]
[1727033580696,0.06508942,2573.3,2572.8,8.61651252]
[1727033581095,6.31298,2573.4,2572.8,12.50324252]
[1727033581303,0.06508942,2573.3,2572.8,12.50324252]
[1727033581509,6.31298,2573.4,2572.9,3.88663]
[1727033581714,0.06508942,2573.3,2572.9,3.88663]
[1727033585551,0.06508942,2573.3,2572.9,3.0]
[1727033586411,3.95115942,2573.3,2572.9,3.0]
[1727033586615,0.06508942,2573.3,2572.9,6.88659]
[1727033586824,0.06508942,2573.3,2573.0,3.8865]
[1727033587798,0.06508942,2573.3,2572.9,6.88665]
[1727033588133,0.06508942,2573.3,2573.0,3.88649]
[1727033590023,0.06508942,2573.3,2572.9,6.88665]
[1727033591050,0.06508942,2573.3,2573.0,3.8865]
[1727033596187,0.06508942,2573.3,2573.1,3.88635]
[1727033596348,0.06508942,2573.3,2573.1,5.07509453]
[1727033597652,0.06508942,2573.3,2573.2,9.11932499]
[1727033597854,0.06508942,2573.3,2573.2,9.04161]
[1727033598054,2.3415,2573.9,2573.5,6.88574]
[1727033598556,2.3415,2573.9,2573.5,3.0]
[1727033598557,0.06251951,2573.8,2573.5,3.0]
[1727033599390,0.06251951,2573.8,2573.3,3.0]
[1727033599669,2.3415,2573.7,2573.3,3.0]
[1727033599906,0.06268429,2573.6,2573.3,3.0]
[1727033600107,3.94829429,2573.6,2573.3,3.0]
[1727033600311,6.22733,2573.5,2573.1,3.0]
[1727033600518,0.06279117,2573.4,2573.1,3.0]
[1727033601712,0.06279117,2573.4,2573.1,6.88633]
[1727033602011,0.06279117,2573.4,2573.1,3.0]
[1727033607917,0.06279117,2573.4,2573.0,3.0]
[1727033608133,2.4626,2573.3,2572.8,3.0]
[1727033608486,0.06259078,2573.2,2572.9,3.0]
[1727033608686,2.4626,2573.3,2572.9,3.0]
[1727033608987,0.06259078,2573.2,2572.9,3.0]
[1727033609431,2.4626,2573.3,2572.9,3.0]
[1727033609722,0.06259078,2573.2,2572.9,3.0]
[1727033610022,2.4626,2573.3,2572.9,3.0]
[1727033610223,0.06259078,2573.1,2572.9,3.0]
[1727033610529,2.4626,2573.3,2572.9,3.0]
[1727033610530,0.06259078,2573.0,2572.9,3.0]
[1727033610734,2.4626,2573.3,2572.9,3.0]
[1727033611227,0.06259078,2573.2,2572.9,3.0]
[1727033611590,2.4626,2573.3,2572.9,3.0]
[1727033611792,0.06259078,2573.1,2572.9,3.0]
[1727033611991,2.4626,2573.3,2572.9,3.0]
[1727033612191,0.06259078,2573.0,2572.9,3.0]
[1727033612629,2.4626,2573.3,2572.9,3.0]
[1727033613247,0.06246605,2573.2,2573.0,3.88641]
[1727033613538,2.4626,2573.3,2573.0,3.88641]
[1727033613834,0.06234132,2573.2,2573.0,3.88641]
[1727033614198,2.4626,2573.3,2573.0,3.88641]
[1727033614829,0.06234578,2573.2,2573.0,3.88641]
[1727033615416,2.4626,2573.3,2573.0,3.88641]
[1727033615817,0.06234578,2573.2,2573.0,3.88641]
[1727033616339,2.4626,2573.3,2573.1,3.88635]
[1727033616488,0.06234578,2573.2,2573.1,3.88635]
[1727033616689,2.4626,2573.3,2573.1,3.88635]
[1727033616889,0.06234578,2573.2,2573.1,3.88635]
[1727033617113,2.4626,2573.3,2573.1,3.88635]
[1727033617302,0.06234578,2573.2,2573.1,3.88635]
[1727033617504,2.4626,2573.3,2573.1,3.88635]
[1727033617730,0.06234578,2573.2,2573.1,3.88635]
[1727033618023,2.4626,2573.3,2573.0,3.88649]
[1727033618404,0.06234578,2573.2,2573.0,3.88649]
[1727033618734,2.4626,2573.3,2573.0,3.88649]
[1727033619026,0.06234578,2573.2,2573.0,3.88649]
[1727033619402,2.4626,2573.3,2573.0,3.88649]
[1727033619789,0.06234578,2573.2,2573.0,3.88649]
[1727033619990,2.4626,2573.3,2573.0,3.88649]
[1727033620241,0.06234578,2573.2,2573.0,3.88649]
[1727033620595,2.4626,2573.3,2573.0,3.88649]
[1727033620930,0.06234578,2573.2,2573.0,3.88649]
[1727033621231,2.4626,2573.3,2573.0,3.88649]
[1727033621529,0.06234578,2573.2,2573.0,3.88649]
[1727033621827,2.4626,2573.3,2573.0,3.88649]
[1727033622325,0.06234578,2573.2,2573.0,3.88649]
[1727033622531,2.4626,2573.3,2573.0,3.88649]
[1727033622838,0.06234578,2573.2,2573.0,3.88649]
[1727033623216,2.4626,2573.3,2573.0,3.88649]
[1727033623605,0.06234578,2573.2,2573.0,3.88649]
[1727033623930,2.4626,2573.3,2573.0,3.88649]
[1727033624140,0.06234578,2573.2,2573.0,3.88649]
[1727033624302,2.4626,2573.3,2573.0,3.88649]
[1727033624643,0.06241261,2573.2,2573.0,3.88649]
[1727033625006,2.4626,2573.3,2573.0,3.88649]
[1727033625222,0.06241261,2573.1,2573.0,3.88649]
[1727033625422,2.4626,2573.3,2573.0,3.88649]
[1727033625806,0.06241261,2573.2,2573.0,3.88649]
[1727033626205,2.4626,2573.3,2573.0,3.88649]
[1727033626446,0.06241261,2573.1,2573.0,3.88649]
[1727033626648,2.4626,2573.3,2573.0,3.88649]
[1727033626937,2.4626,2573.3,2572.9,3.88657]
[1727033626938,0.06241261,2573.2,2572.9,3.88657]
[1727033627134,2.4626,2573.3,2572.9,3.88657]
[1727033627340,0.06241261,2573.2,2572.9,4.69782873]
[1727033627537,2.4626,2573.3,2572.9,3.88657]
[1727033627744,0.06241261,2573.2,2572.9,7.77315]
[1727033628041,2.4626,2573.3,2572.9,4.69782873]
[1727033628337,2.4626,2573.3,2572.9,3.88657]
[1727033628538,0.06241261,2573.2,2572.9,7.77312]
[1727033628706,2.4626,2573.3,2572.9,3.88655]
[1727033628902,0.06241261,2573.2,2572.9,3.88655]
[1727033629153,2.4626,2573.3,2572.9,3.88655]
[1727033629376,0.06241261,2573.2,2572.9,3.88655]
[1727033629521,2.4626,2573.3,2572.9,3.88655]
[1727033629858,2.4626,2573.3,2572.8,1.19979884]
[1727033629859,2.3443,2573.1,2572.8,1.19979884]
[1727033630068,7.41954174,2573.1,2573.0,1.10530704]
[1727033630227,8.62787142,2573.1,2573.0,1.10530704]
[1727033630561,9.09305168,2573.1,2572.9,0.42511809]
[1727033630762,10.1342715,2573.0,2572.9,0.42511809]
[1727033631050,10.1342715,2573.0,2572.4,7.35]
[1727033631051,6.2313,2572.7,2572.4,7.35]
[1727033631350,2.3443,2572.6,2572.5,0.42487031]
[1727033631551,2.40635168,2572.6,2572.5,0.42487031]
[1727033631910,6.29346168,2572.6,2572.5,0.42487031]
[1727033632106,7.43039602,2572.6,2572.1,0.67980159]
[1727033632345,2.2827,2572.5,2572.2,0.42465124]
[1727033632565,0.06204722,2572.4,2572.3,0.42465124]
[1727033632918,0.06204722,2572.4,2571.9,13.39348]
[1727033633062,0.06204722,2572.4,2572.3,0.42465706]
[1727033633229,0.06204722,2572.4,2572.0,1.1041074]
[1727033633430,0.06204722,2572.4,2572.3,0.42465706]
[1727033634262,0.06204722,2572.4,2572.0,0.67886238]
[1727033634563,0.06204722,2572.4,2572.1,0.42428936]
[1727033634759,0.06204722,2572.4,2572.2,0.42428936]
[1727033634923,0.06204722,2572.4,2571.9,11.12045174]
[1727033635128,0.06204722,2572.4,2572.0,1.10315257]
[1727033635327,0.06204722,2572.4,2572.1,0.42428945]
[1727033635528,0.06204722,2572.4,2572.2,0.42428945]
[1727033635744,0.06204722,2572.4,2572.0,4.56686312]
[1727033636163,0.06204722,2572.4,2572.0,3.888]
[1727033636377,0.06204722,2572.4,2572.1,0.42414523]
[1727033636774,0.06204722,2572.4,2572.0,3.888]
[1727033638790,0.06204722,2572.4,2572.1,3.88785]
[1727033639472,0.06204722,2572.4,2572.1,4.31186587]
[1727033640254,0.06204722,2572.4,2572.1,3.88785]
[1727033640852,0.06204722,2572.4,2572.2,3.88771]
[1727033641095,0.06204722,2572.4,2572.1,3.88785]
[1727033641251,0.06204722,2572.4,2572.1,7.77565]
[1727033641455,0.06204722,2572.4,2572.3,3.88757]
[1727033641856,2.2827,2572.7,2572.4,3.88735]
[1727033644373,2.2827,2572.7,2572.5,3.88726]
[1727033644568,2.2827,2572.7,2572.5,3.88714]
[1727033644785,5.07509174,2573.2,2572.5,3.88714]
[1727033644786,2.4352,2572.9,2572.5,3.88714]
[1727033645994,5.07509174,2573.2,2572.8,3.88674]
[1727033645995,2.4352,2573.2,2572.8,3.88674]
[1727033646373,2.4352,2573.2,2572.9,3.88665]
[1727033647103,2.4352,2573.2,2572.9,3.88658]
[1727033647458,2.4352,2573.2,2572.8,4.31061426]
[1727033647671,2.4352,2573.2,2572.8,3.88681]
[1727033648501,2.4352,2573.2,2572.9,3.88664]
[1727033648900,2.4352,2573.2,2572.9,3.88657]
[1727033651270,1.21409749,2573.8,2572.7,3.88685]
[1727033651271,2.4352,2573.4,2573.2,3.88606]
[1727033651608,0.06189575,2573.3,2573.2,3.88606]
[1727033653974,0.06189575,2573.3,2573.2,9.11917836]
[1727033654327,2.4352,2573.7,2573.5,7.77137]
[1727033654681,0.0622745,2573.6,2573.5,3.88567]
[1727033656012,2.4352,2573.7,2573.5,3.88567]
[1727033656213,0.06259078,2573.6,2573.5,3.88567]
[1727033656452,2.4352,2573.7,2573.5,3.88567]
[1727033656892,0.06259523,2573.6,2573.5,3.88567]
[1727033657323,2.4352,2573.7,2573.5,3.88567]
[1727033657676,2.4352,2573.7,2573.6,3.8856]
[1727033659492,2.4352,2573.7,2573.4,3.8858]
[1727033659719,2.4352,2573.7,2573.5,3.88567]
[1727033660821,2.4352,2573.7,2573.6,3.8856]
[1727033662710,2.4619,2574.1,2573.7,3.8854]
[1727033663097,2.4619,2574.1,2573.6,3.8856]
[1727033663409,2.4619,2574.1,2573.6,7.77113]
[1727033663994,2.4619,2574.1,2573.6,3.88553]
[1727033664699,2.4619,2574.0,2573.5,3.88575]
[1727033665015,2.4619,2573.9,2573.5,3.88575]
[1727033666007,2.4619,2573.9,2573.6,3.8856]
[1727033666815,0.06281344,2573.8,2573.6,7.77113]
[1727033667023,0.06281344,2573.8,2573.6,3.88553]
[1727033667956,0.06281344,2573.8,2573.7,3.88545]
[1727033668899,0.06281344,2573.8,2573.6,3.88553]
[1727033670736,0.06281344,2573.8,2573.2,3.0]
[1727033670737,2.4619,2573.7,2573.2,6.8861]
[1727033670943,2.4619,2573.7,2573.4,3.88589]
[1727033672204,2.4619,2573.7,2573.3,3.0]
[1727033672444,0.06283127,2573.6,2573.3,6.88604]
[1727033672622,0.06283127,2573.6,2573.4,3.8859]
[1727033672827,0.06283127,2573.6,2573.4,3.88583]
[1727033673045,0.06283127,2573.6,2573.5,3.88575]
[1727033693075,0.06283127,2573.6,2573.5,4.56522712]
[1727033693414,0.06283127,2573.6,2573.5,4.56522734]
[1727033695005,0.06283127,2573.6,2573.5,3.88575]
[1727033695209,0.06283127,2573.6,2573.5,0.67978717]
[1727033695587,0.06283127,2573.6,2573.5,4.56553717]
[1727033698385,0.06283127,2573.6,2573.4,3.88581]
[1727033699119,6.72551415,2573.6,2573.5,0.68049185]
[1727033699346,3.68012876,2573.6,2573.5,0.68049185]
[1727033699827,7.56572876,2573.6,2573.5,0.68049185]
[1727033700294,3.68012876,2573.6,2573.5,0.68049185]
[1727033701515,2.46603127,2573.6,2573.5,0.68049185]
[1727033701728,3.38370777,2573.6,2573.5,0.68049185]
[1727033702015,4.59780526,2573.6,2573.5,0.68049185]
[1727033702596,3.38370777,2573.6,2573.5,0.68049185]
[1727033702988,7.26930777,2573.6,2573.5,0.68049185]
[1727033703299,8.48340526,2573.6,2573.5,0.68049185]
[1727033703490,7.26930777,2573.6,2573.2,3.88616]
[1727033703687,3.38370777,2573.6,2573.2,3.88616]
[1727033705519,3.38370777,2573.6,2573.2,3.88614]
[1727033706235,0.06283127,2573.6,2573.4,3.88581]
[1727033706449,0.06283127,2573.6,2573.5,6.04115]
[1727033706728,1.21409749,2574.1,2573.8,3.88522]
[1727033706916,1.21409749,2574.1,2573.8,7.77044]
[1727033707241,1.21409749,2574.1,2573.6,3.88548]
[1727033707447,1.21409749,2574.3,2573.9,2.1554]
[1727033707743,3.53309749,2574.4,2573.9,2.1554]
[1727033707892,2.319,2574.4,2574.2,3.88457]
[1727033708296,1.21409749,2574.5,2574.4,3.8844]
[1727033708532,3.53309749,2574.6,2574.2,3.88455]
[1727033708843,5.43878547,2574.6,2574.2,7.74355]
[1727033708999,5.43878547,2574.6,2574.2,3.85895]
[1727033709733,5.43878547,2574.6,2574.2,7.74357]
[1727033709734,4.24990373,2574.6,2574.2,7.74357]
[1727033710342,4.24990373,2574.6,2574.2,3.85895]
[1727033710506,4.24990373,2574.6,2574.3,0.4247662]
[1727033710707,0.974496,2574.5,2574.2,7.74356]
[1727033710914,0.974496,2574.5,2574.3,0.42475758]
[1727033711119,0.974496,2574.5,2574.2,3.85895]
[1727033711526,0.974496,2574.5,2574.3,0.42466696]
[1727033711713,0.0606821,2574.4,2574.2,3.85895]
[1727033711917,0.0606821,2574.4,2574.3,4.30921989]
[1727033712121,2.319,2574.6,2574.3,4.30921989]
[1727033712427,2.319,2574.8,2574.5,3.88422]
[1727033712605,0.53327654,2574.7,2574.5,3.88414]
[1727033712801,0.53327654,2574.7,2574.6,3.88409]
[1727033713205,0.53327654,2574.7,2574.5,3.88424]
[1727033715544,2.319,2574.8,2574.5,3.88424]
[1727033719247,2.319,2574.8,2574.4,3.8843]
[1727033719766,2.319,2574.8,2574.4,7.76861]
[1727033721263,2.319,2574.8,2574.5,3.88421]
[1727033722028,2.319,2574.8,2574.4,7.76861]
[1727033722225,0.41186679,2574.7,2574.3,3.88446]
[1727033722431,0.41186679,2574.7,2574.2,7.76917]
[1727033722667,0.41186679,2574.7,2574.2,3.88458]
[1727033722831,2.3747,2574.6,2574.2,3.88458]
[1727033723038,3.54902385,2574.6,2574.2,3.88458]
[1727033723464,3.54902385,2574.6,2574.3,3.88455]
[1727033723842,3.54902385,2574.6,2574.2,7.76919]
[1727033724375,3.54902385,2574.6,2574.3,3.88447]
[1727033726738,0.06143584,2574.5,2574.3,3.88447]
[1727033728464,0.46366849,2574.5,2574.2,3.88458]
[1727033728641,0.46366849,2574.5,2574.2,7.7692]
[1727033728832,0.46366849,2574.5,2574.2,3.88458]
[1727033729631,0.46366849,2574.5,2574.2,7.76919]
[1727033729831,2.3747,2574.4,2574.0,3.8849]
[1727033730065,2.3747,2574.2,2574.0,3.8849]
[1727033730229,2.3747,2574.2,2574.1,3.88485]
[1727033730432,0.28383685,2574.3,2574.1,3.88485]
[1727033734465,2.3747,2574.4,2573.8,3.0]
[1727033734666,2.3747,2574.4,2573.9,6.04043]
[1727033734896,2.3747,2574.4,2574.1,3.88477]
[1727033735052,2.3747,2574.7,2574.3,3.88451]
[1727033735253,0.23747,2574.6,2574.5,3.88424]
[1727033735555,0.23747,2574.6,2574.4,3.88434]
[1727033737399,0.23747,2574.6,2574.5,3.88424]
[1727033741295,2.3747,2574.7,2574.5,3.88424]
[1727033741705,0.13406712,2574.6,2574.5,3.88424]
[1727033743001,0.13406712,2574.6,2574.1,2.1554]
[1727033743230,0.13406712,2574.6,2573.9,8.53888174]
[1727033743231,0.13406712,2574.6,2574.2,3.88456]
[1727033743817,3.57778174,2574.4,2574.0,3.885]
[1727033743970,3.13510617,2574.3,2574.0,3.885]
[1727033744176,3.26929813,2574.3,2574.0,3.885]
[1727033744419,3.26929813,2574.3,2573.9,11.23505]
[1727033744571,3.26929813,2574.3,2573.9,7.77009]
[1727033745303,3.26929813,2574.3,2573.9,3.88504]
[1727033745512,0.71536981,2574.2,2573.9,3.88504]
[1727033745742,0.1341117,2574.1,2573.9,3.88504]
[1727033748180,0.1341117,2574.1,2574.0,3.885]
[1727033748601,2.3889,2574.3,2574.0,3.885]
[1727033748803,0.1341117,2574.1,2573.9,3.88504]
[1727033748970,3.016223,2574.3,2573.9,7.77009]
[1727033749174,0.1341117,2574.0,2573.9,3.88504]
[1727033749419,3.016223,2574.3,2573.9,3.88504]
[1727033749628,0.1341117,2574.0,2573.9,3.88504]
[1727033749855,3.016223,2574.3,2573.9,3.88504]
[1727033749995,0.1341117,2574.0,2573.9,3.88504]
[1727033750197,0.6900633,2574.2,2573.9,3.88504]
[1727033750434,0.1341117,2574.0,2573.9,3.88504]
[1727033750635,0.6900633,2574.2,2573.9,3.88504]
[1727033750845,0.1341117,2574.0,2573.9,3.88504]
[1727033751298,0.6900633,2574.2,2573.9,3.88504]
[1727033751500,0.1341117,2574.1,2573.9,3.88504]
[1727033752237,0.1341117,2574.1,2573.9,3.88515]
[1727033753717,2.2685,2574.0,2573.6,0.81125873]
[1727033753969,0.13404035,2573.9,2573.5,3.88565]
[1727033754810,2.2685,2573.8,2573.4,3.8859]
[1727033755310,0.13381738,2573.7,2573.4,3.8859]
[1727033755513,0.62875174,2573.7,2573.4,3.8859]
[1727033755733,0.13381738,2573.6,2573.4,3.8859]
[1727033755923,0.13381738,2573.6,2573.4,3.88583]
[1727033759483,0.13381738,2573.6,2573.4,7.77166]
[1727033759761,0.13381738,2573.6,2573.5,3.88575]
[1727033760063,0.13381738,2573.6,2573.4,7.77165]
[1727033760219,2.2685,2573.8,2573.4,7.77165]
[1727033760421,0.13367464,2573.5,2573.4,3.88582]
[1727033760627,2.883858,2573.8,2573.4,7.77164]
[1727033760834,0.13367464,2573.5,2573.4,7.77164]
[1727033761048,2.883858,2573.8,2573.4,7.77164]
[1727033761227,0.13367464,2573.5,2573.4,7.77164]
[1727033761427,2.883858,2573.8,2573.4,7.77164]
[1727033761634,0.13367018,2573.5,2573.4,3.88582]
[1727033761829,2.883858,2573.8,2573.4,3.88582]
[1727033762043,0.13366572,2573.5,2573.4,3.88582]
[1727033762255,2.2685,2573.8,2573.5,3.88571]
[1727033763628,2.2685,2573.8,2573.4,3.88583]
[1727033763949,0.615369,2573.7,2573.4,3.88583]
[1727033764321,0.615369,2573.7,2573.5,3.88573]
[1727033764625,2.2685,2573.8,2573.5,3.88573]
[1727033768039,2.2685,2573.8,2573.4,3.88589]
[1727033771721,0.13339807,2573.7,2573.5,3.88574]
[1727033771886,2.4443,2574.1,2573.5,2.1554]
[1727033772101,2.4443,2574.1,2573.8,3.88518]
[1727033772102,0.13338023,2574.0,2573.8,3.88518]
[1727033772303,0.13338023,2574.0,2573.8,7.7704]
[1727033772725,0.13338023,2574.0,2573.8,3.88518]
[1727033774462,0.13338023,2574.0,2573.7,3.88543]
[1727033777201,0.13338023,2574.0,2573.8,3.88527]
[1727033779241,0.13338023,2574.0,2573.9,3.88515]
[1727033779606,9.8943,2574.4,2574.0,3.88491]
[1727033779809,4.16155867,2574.4,2574.0,3.88491]
[1727033780828,5.35044041,2574.4,2574.0,3.88491]
[1727033783008,5.35044041,2574.4,2573.9,7.77018]
[1727033783212,5.35044041,2574.4,2573.5,7.35]
[1727033783213,3.88456,2574.3,2573.7,3.88536]
[1727033783425,2.4302,2574.2,2573.8,3.88529]